[Event "*** Biggest EVER Titled Tuesday"]
[Site "Chess.com"]
[Date "2018.04.17"]
[Round "2"]
[White "ToivoK3"]
[Black "wadsy27"]
[Result "1-0"]
[WhiteElo "2226"]
[BlackElo "2141"]
[TimeControl "180+2"]
[EndTime "13:21:53 PDT"]
[Termination "ToivoK3 won by resignation"]

1. e4 {[%clk 0:03:01.9]} 1... c5 {[%clk 0:02:59.3]} 2. Nf3 {[%clk 0:03:02.4]}
2... e6 {[%clk 0:03:00.4]} 3. d4 {[%clk 0:03:01.2]} 3... cxd4 {[%clk 0:03:01.4]}
4. Nxd4 {[%clk 0:03:03.1]} 4... Nc6 {[%clk 0:03:02.1]} 5. Nc3 {[%clk 0:03:03.6]}
5... Qc7 {[%clk 0:03:03.1]} 6. g3 {[%clk 0:03:01.2]} 6... a6 {[%clk 0:03:04]} 7.
Bg2 {[%clk 0:03:01.2]} 7... Nf6 {[%clk 0:03:05.3]} 8. O-O {[%clk 0:03:02.3]}
8... Nxd4 {[%clk 0:03:06.2]} 9. Qxd4 {[%clk 0:03:04.2]} 9... Bc5 {[%clk
0:03:07.3]} 10. Bf4 {[%clk 0:03:05.4]} 10... d6 {[%clk 0:03:07.9]} 11. Qd2
{[%clk 0:03:05.2]} 11... h6 {[%clk 0:03:08.1]} 12. Rad1 {[%clk 0:02:58.3]} 12...
e5 {[%clk 0:03:09]} 13. Be3 {[%clk 0:02:56.5]} 13... Be6 {[%clk 0:03:08.7]} 14.
Bxc5 {[%clk 0:02:39.3]} 14... dxc5 {[%clk 0:03:09.3]} 15. f4 {[%clk 0:02:40.7]}
15... O-O {[%clk 0:03:01.5]} 16. fxe5 {[%clk 0:02:32]} 16... Qxe5 {[%clk
0:03:01.8]} 17. Qf4 {[%clk 0:02:32]} 17... Qxf4 {[%clk 0:02:41]} 18. gxf4 {[%clk
0:02:33.9]} 18... Ng4 {[%clk 0:01:54.1]} 19. Rfe1 {[%clk 0:02:01.1]} 19... f5
{[%clk 0:01:49]} 20. e5 {[%clk 0:01:55.8]} 20... h5 {[%clk 0:01:38]} 21. Rd6
{[%clk 0:01:53.5]} 21... Bc4 {[%clk 0:01:26.5]} 22. b3 {[%clk 0:01:52.3]} 22...
Bf7 {[%clk 0:01:20.2]} 23. Bxb7 {[%clk 0:01:50.8]} 23... Rae8 {[%clk 0:01:13.9]}
24. Bd5 {[%clk 0:01:50.4]} 24... Bxd5 {[%clk 0:00:59.5]} 25. Nxd5 {[%clk
0:01:52.3]} 25... g5 {[%clk 0:00:52.6]} 26. Rg6+ {[%clk 0:01:49.2]} 26... Kh7
{[%clk 0:00:44.5]} 27. Rxg5 {[%clk 0:01:51.1]} 27... Rg8 {[%clk 0:00:40.2]} 28.
h3 {[%clk 0:01:50]} 28... Rxg5 {[%clk 0:00:30.5]} 29. fxg5 {[%clk 0:01:51.9]}
29... Rxe5 {[%clk 0:00:30.7]} 30. Rxe5 {[%clk 0:01:41.7]} 30... Nxe5 {[%clk
0:00:31.3]} 31. Kf2 {[%clk 0:01:42.5]} 31... h4 {[%clk 0:00:29.8]} 32. Ke3
{[%clk 0:01:37.6]} 32... Kg6 {[%clk 0:00:24.7]} 33. Kf4 {[%clk 0:01:38]} 33...
Nc6 {[%clk 0:00:25.9]} 34. c3 {[%clk 0:01:34.9]} 34... a5 {[%clk 0:00:25.8]} 35.
a4 {[%clk 0:01:35.7]} 35... Nd8 {[%clk 0:00:19.5]} 36. Ne7+ {[%clk 0:01:35.6]}
36... Kh5 {[%clk 0:00:20.8]} 37. Kxf5 {[%clk 0:01:33.5]} 37... Nf7 {[%clk
0:00:20]} 38. g6 {[%clk 0:01:31.2]} 38... Nd6+ {[%clk 0:00:19.1]} 39. Ke6 {[%clk
0:01:31]} 39... Ne8 {[%clk 0:00:14.9]} 40. Kf7 {[%clk 0:01:26.2]} 40... Nd6+
{[%clk 0:00:15.4]} 41. Kg8 {[%clk 0:01:27.7]} 41... Ne8 {[%clk 0:00:09.1]} 42.
Kf8 {[%clk 0:01:26.4]} 42... Nf6 {[%clk 0:00:09.5]} 43. g7 {[%clk 0:01:27.3]}
43... Kg5 {[%clk 0:00:10.4]} 44. Nd5 {[%clk 0:01:24.1]} 44... Nd7+ {[%clk
0:00:09.2]} 45. Ke7 {[%clk 0:01:24.7]} 1-0

[Event "*** Biggest EVER Titled Tuesday"]
[Site "Chess.com"]
[Date "2018.04.17"]
[Round "2"]
[White "ChessTrail"]
[Black "ShimanovAlex"]
[Result "0-1"]
[WhiteElo "2498"]
[BlackElo "2706"]
[TimeControl "180+2"]
[EndTime "13:21:59 PDT"]
[Termination "ShimanovAlex won on time"]

1. e4 {[%clk 0:03:01.9]} 1... c6 {[%clk 0:02:52.3]} 2. d4 {[%clk 0:03:00]} 2...
d5 {[%clk 0:02:53.6]} 3. e5 {[%clk 0:02:52.6]} 3... c5 {[%clk 0:02:54.5]} 4.
dxc5 {[%clk 0:02:45.2]} 4... e6 {[%clk 0:02:54.9]} 5. a3 {[%clk 0:02:39]} 5...
Bxc5 {[%clk 0:02:54.6]} 6. b4 {[%clk 0:02:34.1]} 6... Bb6 {[%clk 0:02:55.1]} 7.
Qg4 {[%clk 0:02:33.2]} 7... Ne7 {[%clk 0:02:55.4]} 8. Nf3 {[%clk 0:02:21.1]}
8... O-O {[%clk 0:02:51.4]} 9. Bb2 {[%clk 0:02:15.2]} 9... a5 {[%clk 0:02:46.3]}
10. b5 {[%clk 0:02:10.6]} 10... Nd7 {[%clk 0:02:44.9]} 11. Bd3 {[%clk
0:02:03.2]} 11... Ng6 {[%clk 0:02:45.7]} 12. h4 {[%clk 0:01:54.5]} 12... Bc7
{[%clk 0:02:40.4]} 13. Qg3 {[%clk 0:01:38.9]} 13... f6 {[%clk 0:02:27.9]} 14.
Bxg6 {[%clk 0:01:38.2]} 14... hxg6 {[%clk 0:02:27.9]} 15. Qxg6 {[%clk
0:01:39.2]} 15... Nxe5 {[%clk 0:02:27.8]} 16. Bxe5 {[%clk 0:01:18.2]} 16... Bxe5
{[%clk 0:02:28.3]} 17. Nxe5 {[%clk 0:01:16]} 17... fxe5 {[%clk 0:02:30.2]} 18.
Nd2 {[%clk 0:01:08.5]} 18... Qf6 {[%clk 0:02:29.9]} 19. Qg3 {[%clk 0:01:08.2]}
19... Bd7 {[%clk 0:02:30.8]} 20. a4 {[%clk 0:01:08]} 20... Rac8 {[%clk
0:02:31.2]} 21. c4 {[%clk 0:01:07.4]} 21... e4 {[%clk 0:02:25.9]} 22. O-O {[%clk
0:01:06.9]} 22... Be8 {[%clk 0:02:20.7]} 23. Qd6 {[%clk 0:00:56.8]} 23... Bf7
{[%clk 0:02:05.6]} 24. cxd5 {[%clk 0:00:53.4]} 24... exd5 {[%clk 0:02:05.7]} 25.
Qxf6 {[%clk 0:00:54.4]} 25... gxf6 {[%clk 0:02:07.6]} 26. Nb3 {[%clk 0:00:55.7]}
26... b6 {[%clk 0:02:03.6]} 27. Rac1 {[%clk 0:00:54.1]} 27... Rc4 {[%clk
0:02:03.4]} 28. Rxc4 {[%clk 0:00:51.9]} 28... dxc4 {[%clk 0:02:05.3]} 29. Nd4
{[%clk 0:00:52.6]} 29... Rd8 {[%clk 0:02:04.8]} 30. Nc6 {[%clk 0:00:52.8]} 30...
Rd2 {[%clk 0:02:04.8]} 31. Rc1 {[%clk 0:00:52.7]} 31... Kf8 {[%clk 0:01:59.6]}
32. Na7 {[%clk 0:00:46]} 32... Be6 {[%clk 0:01:56.2]} 33. h5 {[%clk 0:00:42.6]}
33... Rd3 {[%clk 0:01:43.2]} 34. h6 {[%clk 0:00:38.4]} 34... c3 {[%clk
0:01:41.2]} 35. Nc6 {[%clk 0:00:21.6]} 35... Bb3 {[%clk 0:01:30.8]} 36. Nd4
{[%clk 0:00:20.7]} 36... Bxa4 {[%clk 0:00:46.5]} 37. Ne6+ {[%clk 0:00:18.4]}
37... Kg8 {[%clk 0:00:47.4]} 38. Kh2 {[%clk 0:00:12.3]} 38... c2 {[%clk
0:00:45.9]} 0-1

[Event "*** Biggest EVER Titled Tuesday"]
[Site "Chess.com"]
[Date "2018.04.17"]
[Round "2"]
[White "Caterpiller35"]
[Black "mjray79"]
[Result "1-0"]
[WhiteElo "2243"]
[BlackElo "2031"]
[TimeControl "180+2"]
[EndTime "13:22:00 PDT"]
[Termination "Caterpiller35 won by checkmate"]

1. d4 {[%clk 0:03:01.9]} 1... Nf6 {[%clk 0:02:58.4]} 2. Bg5 {[%clk 0:03:01.4]}
2... Ne4 {[%clk 0:02:57.5]} 3. Bf4 {[%clk 0:03:01.9]} 3... d5 {[%clk 0:02:57.1]}
4. e3 {[%clk 0:03:01.4]} 4... c5 {[%clk 0:02:49.7]} 5. Bd3 {[%clk 0:03:00.7]}
5... Nf6 {[%clk 0:02:35.3]} 6. c3 {[%clk 0:02:59.5]} 6... cxd4 {[%clk
0:02:34.4]} 7. exd4 {[%clk 0:03:00.1]} 7... Nc6 {[%clk 0:02:34.1]} 8. Nd2 {[%clk
0:02:59.5]} 8... Bg4 {[%clk 0:02:31.6]} 9. Qb3 {[%clk 0:02:59.3]} 9... Qd7
{[%clk 0:02:22.1]} 10. Ngf3 {[%clk 0:02:57.9]} 10... e6 {[%clk 0:02:17.9]} 11.
Ne5 {[%clk 0:02:58.6]} 11... Qc8 {[%clk 0:02:01.8]} 12. O-O {[%clk 0:02:39.3]}
12... Nxe5 {[%clk 0:01:56.4]} 13. dxe5 {[%clk 0:02:39.4]} 13... Nd7 {[%clk
0:01:53.7]} 14. c4 {[%clk 0:02:35]} 14... Nc5 {[%clk 0:01:45.2]} 15. Qb5+ {[%clk
0:02:32.3]} 15... Qc6 {[%clk 0:01:41.7]} 16. cxd5 {[%clk 0:02:29.5]} 16... exd5
{[%clk 0:01:34.7]} 17. Rac1 {[%clk 0:02:15.2]} 17... Bd7 {[%clk 0:01:25.7]} 18.
Qxc6 {[%clk 0:02:11.6]} 18... bxc6 {[%clk 0:01:20.3]} 19. Be2 {[%clk 0:02:08.8]}
19... Ne6 {[%clk 0:01:18.2]} 20. Bg3 {[%clk 0:02:03.9]} 20... Bb4 {[%clk
0:01:12.1]} 21. Rfd1 {[%clk 0:01:47.9]} 21... O-O {[%clk 0:01:11.1]} 22. a3
{[%clk 0:01:47.7]} 22... Ba5 {[%clk 0:01:10.6]} 23. b4 {[%clk 0:01:46.3]} 23...
Bb6 {[%clk 0:01:10.4]} 24. Nb3 {[%clk 0:01:47.2]} 24... a5 {[%clk 0:01:04.3]}
25. Ra1 {[%clk 0:01:20.8]} 25... a4 {[%clk 0:00:58.3]} 26. Nc1 {[%clk
0:01:16.3]} 26... Nd4 {[%clk 0:00:56.6]} 27. Bd3 {[%clk 0:01:11.3]} 27... Bg4
{[%clk 0:00:55.9]} 28. Rd2 {[%clk 0:01:04.4]} 28... Rac8 {[%clk 0:00:52.6]} 29.
h3 {[%clk 0:01:03.3]} 29... Bf5 {[%clk 0:00:49.9]} 30. Bxf5 {[%clk 0:01:03.1]}
30... Nxf5 {[%clk 0:00:50]} 31. Kh2 {[%clk 0:01:04]} 31... Nxg3 {[%clk 0:00:50]}
32. Kxg3 {[%clk 0:01:04.2]} 32... Rfe8 {[%clk 0:00:50.6]} 33. f4 {[%clk
0:01:03.7]} 33... Bc7 {[%clk 0:00:48.2]} 34. Nd3 {[%clk 0:01:03.8]} 34... g5
{[%clk 0:00:47]} 35. Rc1 {[%clk 0:00:58]} 35... gxf4+ {[%clk 0:00:47.1]} 36.
Kxf4 {[%clk 0:00:58.9]} 36... f6 {[%clk 0:00:46.6]} 37. Kf5 {[%clk 0:00:49.5]}
37... Bxe5 {[%clk 0:00:43.8]} 38. Rdc2 {[%clk 0:00:46.3]} 38... Rc7 {[%clk
0:00:38.1]} 39. Rxc6 {[%clk 0:00:45.8]} 39... Rg7 {[%clk 0:00:38.5]} 40. Nxe5
{[%clk 0:00:31.1]} 40... Rxe5+ {[%clk 0:00:36.3]} 41. Kxf6 {[%clk 0:00:31.9]}
41... Re3 {[%clk 0:00:32.3]} 42. Rc8+ {[%clk 0:00:31.9]} 42... Re8 {[%clk
0:00:32.9]} 43. Rxe8# {[%clk 0:00:32.7]} 1-0

[Event "*** Biggest EVER Titled Tuesday"]
[Site "Chess.com"]
[Date "2018.04.17"]
[Round "2"]
[White "oskariot"]
[Black "cheese111"]
[Result "0-1"]
[WhiteElo "2379"]
[BlackElo "2426"]
[TimeControl "180+2"]
[EndTime "13:22:05 PDT"]
[Termination "cheese111 won by resignation"]

1. Nc3 {[%clk 0:03:01.9]} 1... Nf6 {[%clk 0:03:00.4]} 2. Nf3 {[%clk 0:03:01.4]}
2... d5 {[%clk 0:02:59.2]} 3. d4 {[%clk 0:03:02.5]} 3... g6 {[%clk 0:02:50.8]}
4. Bf4 {[%clk 0:03:03.3]} 4... Bg7 {[%clk 0:02:51.9]} 5. Qd2 {[%clk 0:03:04.5]}
5... Ne4 {[%clk 0:02:45]} 6. Nxe4 {[%clk 0:02:39.2]} 6... dxe4 {[%clk
0:02:46.9]} 7. Ng5 {[%clk 0:02:40.6]} 7... Qxd4 {[%clk 0:02:38.9]} 8. Qxd4
{[%clk 0:02:38.1]} 8... Bxd4 {[%clk 0:02:40.8]} 9. c3 {[%clk 0:02:39.3]} 9...
Bg7 {[%clk 0:02:11.6]} 10. Bxc7 {[%clk 0:02:20.5]} 10... Na6 {[%clk 0:02:02.4]}
11. Bg3 {[%clk 0:02:07.7]} 11... Bf5 {[%clk 0:01:51.3]} 12. e3 {[%clk
0:01:55.3]} 12... Bf6 {[%clk 0:01:24.5]} 13. Bb5+ {[%clk 0:01:53.4]} 13... Kf8
{[%clk 0:01:25.5]} 14. Nh3 {[%clk 0:01:51.7]} 14... Kg7 {[%clk 0:01:12.4]} 15.
Nf4 {[%clk 0:01:49.9]} 15... h5 {[%clk 0:00:56.9]} 16. h4 {[%clk 0:01:47.4]}
16... Rhd8 {[%clk 0:00:56.5]} 17. Ke2 {[%clk 0:01:42]} 17... Nc5 {[%clk
0:00:56.2]} 18. Rhd1 {[%clk 0:01:41.3]} 18... a6 {[%clk 0:00:52.7]} 19. Bc4
{[%clk 0:01:41]} 19... Na4 {[%clk 0:00:53.9]} 20. Rdb1 {[%clk 0:01:22.4]} 20...
Rac8 {[%clk 0:00:41.4]} 21. Bb3 {[%clk 0:01:02.9]} 21... Nc5 {[%clk 0:00:19.4]}
22. Rd1 {[%clk 0:01:03.6]} 22... e6 {[%clk 0:00:07.6]} 23. Bc2 {[%clk
0:01:00.3]} 23... Bg4+ {[%clk 0:00:05.6]} 24. f3 {[%clk 0:01:01.2]} 24... exf3+
{[%clk 0:00:07.5]} 25. gxf3 {[%clk 0:01:03.1]} 25... e5 {[%clk 0:00:06.6]} 26.
Nd5 {[%clk 0:00:55.3]} 26... Be6 {[%clk 0:00:07.5]} 27. Nxf6 {[%clk 0:00:44.4]}
27... Kxf6 {[%clk 0:00:09.4]} 28. b3 {[%clk 0:00:35.6]} 28... e4 {[%clk
0:00:08.8]} 29. Rd4 {[%clk 0:00:28.7]} 29... exf3+ {[%clk 0:00:09]} 30. Kxf3
{[%clk 0:00:30]} 30... Bg4+ {[%clk 0:00:10.2]} 31. Kf2 {[%clk 0:00:31.2]} 31...
Ne6 {[%clk 0:00:11.5]} 32. Re4 {[%clk 0:00:10]} 32... Rd2+ {[%clk 0:00:11.9]}
0-1

[Event "*** Biggest EVER Titled Tuesday"]
[Site "Chess.com"]
[Date "2018.04.17"]
[Round "2"]
[White "MITerryble"]
[Black "SergeiAza"]
[Result "0-1"]
[WhiteElo "2639"]
[BlackElo "2647"]
[TimeControl "180+2"]
[EndTime "13:22:08 PDT"]
[Termination "SergeiAza won by resignation"]

1. d4 {[%clk 0:03:00.7]} 1... Nf6 {[%clk 0:02:59.1]} 2. Nf3 {[%clk 0:03:01.4]}
2... d5 {[%clk 0:02:58.9]} 3. c4 {[%clk 0:03:01.9]} 3... e6 {[%clk 0:03:00]} 4.
e3 {[%clk 0:03:02.7]} 4... b6 {[%clk 0:02:56.4]} 5. b3 {[%clk 0:03:02.9]} 5...
Bb7 {[%clk 0:02:56.2]} 6. Bd3 {[%clk 0:03:03.9]} 6... c5 {[%clk 0:02:50]} 7. O-O
{[%clk 0:03:04.4]} 7... cxd4 {[%clk 0:02:47.4]} 8. exd4 {[%clk 0:03:04.9]} 8...
dxc4 {[%clk 0:02:45.7]} 9. bxc4 {[%clk 0:03:05.5]} 9... Be7 {[%clk 0:02:47]} 10.
Bb2 {[%clk 0:03:06.2]} 10... O-O {[%clk 0:02:47.1]} 11. Nbd2 {[%clk 0:03:06.9]}
11... Nc6 {[%clk 0:02:46.2]} 12. Rc1 {[%clk 0:03:00]} 12... Rc8 {[%clk
0:02:46.9]} 13. Qe2 {[%clk 0:02:58.8]} 13... Qc7 {[%clk 0:02:44.2]} 14. a3
{[%clk 0:02:49.8]} 14... Rfd8 {[%clk 0:02:40]} 15. Rfe1 {[%clk 0:02:48.1]} 15...
Qf4 {[%clk 0:02:21.1]} 16. Nb3 {[%clk 0:02:26.1]} 16... Bf8 {[%clk 0:02:03.3]}
17. Rcd1 {[%clk 0:02:16.5]} 17... Na5 {[%clk 0:01:40.4]} 18. Nxa5 {[%clk
0:02:14.1]} 18... Bxf3 {[%clk 0:01:37.3]} 19. Qxf3 {[%clk 0:02:01.9]} 19... Qxf3
{[%clk 0:01:38.3]} 20. gxf3 {[%clk 0:02:03.8]} 20... bxa5 {[%clk 0:01:39.8]} 21.
c5 {[%clk 0:02:00.3]} 21... Nd5 {[%clk 0:01:33.7]} 22. Bc4 {[%clk 0:01:40.6]}
22... g6 {[%clk 0:01:28.7]} 23. Bc1 {[%clk 0:01:24.1]} 23... Bg7 {[%clk
0:01:21.1]} 24. Bg5 {[%clk 0:01:20.1]} 24... Rd7 {[%clk 0:01:16.4]} 25. Bb5
{[%clk 0:01:20.9]} 25... Rdc7 {[%clk 0:01:11.1]} 26. Bc4 {[%clk 0:01:20.3]}
26... h6 {[%clk 0:01:04.9]} 27. Bh4 {[%clk 0:01:20.5]} 27... Ne7 {[%clk
0:00:41.4]} 28. Ba6 {[%clk 0:01:05.5]} 28... Nf5 {[%clk 0:00:22.7]} 29. Bxc8
{[%clk 0:00:09.1]} 29... Nxh4 {[%clk 0:00:23.1]} 30. Re4 {[%clk 0:00:10.2]}
30... Nxf3+ {[%clk 0:00:21.9]} 31. Kg2 {[%clk 0:00:08.7]} 31... Ng5 {[%clk
0:00:21.7]} 32. Re2 {[%clk 0:00:08.6]} 32... Rxc8 {[%clk 0:00:22.5]} 33. d5
{[%clk 0:00:04.9]} 33... exd5 {[%clk 0:00:20.9]} 34. Rxd5 {[%clk 0:00:06.7]}
34... Ne6 {[%clk 0:00:21.8]} 35. Rd7 {[%clk 0:00:07.9]} 35... Nf4+ {[%clk
0:00:22.4]} 36. Kf3 {[%clk 0:00:07.6]} 36... Nxe2 {[%clk 0:00:23.3]} 0-1

[Event "*** Biggest EVER Titled Tuesday"]
[Site "Chess.com"]
[Date "2018.04.17"]
[Round "2"]
[White "Martins-BR"]
[Black "itisabigworld"]
[Result "0-1"]
[WhiteElo "2220"]
[BlackElo "2321"]
[TimeControl "180+2"]
[EndTime "13:22:10 PDT"]
[Termination "itisabigworld won by resignation"]

1. e4 {[%clk 0:03:01.9]} 1... c5 {[%clk 0:03:00.3]} 2. Nf3 {[%clk 0:03:00.8]}
2... e6 {[%clk 0:03:01.4]} 3. d4 {[%clk 0:03:01.8]} 3... cxd4 {[%clk 0:03:02.6]}
4. Nxd4 {[%clk 0:03:03.7]} 4... Nc6 {[%clk 0:03:03.8]} 5. Nc3 {[%clk 0:03:04.5]}
5... a6 {[%clk 0:03:05.3]} 6. Be3 {[%clk 0:02:57.3]} 6... Nf6 {[%clk 0:03:04]}
7. a3 {[%clk 0:02:48.7]} 7... Qc7 {[%clk 0:03:01.3]} 8. Be2 {[%clk 0:02:35.5]}
8... b5 {[%clk 0:03:01.7]} 9. Nxc6 {[%clk 0:02:34.8]} 9... dxc6 {[%clk
0:03:01.4]} 10. f4 {[%clk 0:02:32.2]} 10... e5 {[%clk 0:02:53.4]} 11. f5 {[%clk
0:02:31]} 11... Bb7 {[%clk 0:02:51.4]} 12. O-O {[%clk 0:02:30.5]} 12... Rd8
{[%clk 0:02:46.2]} 13. Qe1 {[%clk 0:02:29.2]} 13... c5 {[%clk 0:02:47.3]} 14.
Bf3 {[%clk 0:02:18.4]} 14... c4 {[%clk 0:02:45.6]} 15. Qg3 {[%clk 0:02:14]}
15... Bc5 {[%clk 0:02:41.5]} 16. Bxc5 {[%clk 0:02:11.6]} 16... Qxc5+ {[%clk
0:02:40.9]} 17. Kh1 {[%clk 0:02:12]} 17... O-O {[%clk 0:02:39.9]} 18. Rad1
{[%clk 0:02:12.2]} 18... Rd4 {[%clk 0:02:38.5]} 19. Qh4 {[%clk 0:02:05.9]} 19...
h6 {[%clk 0:02:33.1]} 20. Rde1 {[%clk 0:01:57.7]} 20... Rd2 {[%clk 0:02:24.4]}
21. g4 {[%clk 0:01:57.9]} 21... Nh7 {[%clk 0:02:24.8]} 22. Qg3 {[%clk
0:01:52.7]} 22... Rxc2 {[%clk 0:02:21.2]} 23. h4 {[%clk 0:01:49.7]} 23... f6
{[%clk 0:02:20.2]} 24. Nd1 {[%clk 0:01:39.6]} 24... Rd8 {[%clk 0:02:15.9]} 25.
Rf2 {[%clk 0:01:32.5]} 25... Rxf2 {[%clk 0:01:48.5]} 26. Nxf2 {[%clk 0:01:30.3]}
26... Rd2 {[%clk 0:01:46.7]} 27. Nh3 {[%clk 0:01:30.4]} 27... c3 {[%clk
0:01:40.3]} 28. g5 {[%clk 0:01:07.5]} 28... hxg5 {[%clk 0:01:33.7]} 29. hxg5
{[%clk 0:01:07.7]} 29... c2 {[%clk 0:01:33.9]} 30. gxf6 {[%clk 0:01:01.1]} 30...
Nxf6 {[%clk 0:01:31.9]} 31. Rg1 {[%clk 0:00:54.1]} 31... Qc7 {[%clk 0:01:25.4]}
32. Ng5 {[%clk 0:00:50.1]} 32... c1=Q {[%clk 0:01:23.1]} 33. Ne6 {[%clk
0:00:44.7]} 33... Qxg1+ {[%clk 0:01:22.9]} 34. Qxg1 {[%clk 0:00:44]} 34... Qe7
{[%clk 0:01:10.2]} 35. Qe3 {[%clk 0:00:20.1]} 35... Nxe4 {[%clk 0:00:55.4]} 36.
Kg1 {[%clk 0:00:15.1]} 36... Qh4 {[%clk 0:00:48.4]} 37. Bxe4 {[%clk 0:00:14]}
37... Rd1+ {[%clk 0:00:45.9]} 38. Kg2 {[%clk 0:00:12.4]} 38... Bxe4+ {[%clk
0:00:45]} 0-1

[Event "*** Biggest EVER Titled Tuesday"]
[Site "Chess.com"]
[Date "2018.04.17"]
[Round "2"]
[White "FCChelsea14"]
[Black "mukhin1"]
[Result "0-1"]
[WhiteElo "2561"]
[BlackElo "2915"]
[TimeControl "180+2"]
[EndTime "13:22:13 PDT"]
[Termination "mukhin1 won by resignation"]

1. d4 {[%clk 0:03:01.9]} 1... e6 {[%clk 0:02:58.1]} 2. Nf3 {[%clk 0:02:57.5]}
2... Nf6 {[%clk 0:02:58.1]} 3. c4 {[%clk 0:02:58.6]} 3... b6 {[%clk 0:02:57.9]}
4. g3 {[%clk 0:02:59.6]} 4... Bb7 {[%clk 0:02:58.1]} 5. Bg2 {[%clk 0:03:00.4]}
5... Bb4+ {[%clk 0:02:59.3]} 6. Nbd2 {[%clk 0:03:00.4]} 6... Be7 {[%clk
0:02:58.9]} 7. O-O {[%clk 0:03:00.4]} 7... O-O {[%clk 0:02:56.1]} 8. Qc2 {[%clk
0:03:01.5]} 8... c5 {[%clk 0:02:53.5]} 9. dxc5 {[%clk 0:02:59.2]} 9... bxc5
{[%clk 0:02:54.3]} 10. b3 {[%clk 0:03:00.1]} 10... Nc6 {[%clk 0:02:51.7]} 11.
Bb2 {[%clk 0:03:00.8]} 11... d6 {[%clk 0:02:52.1]} 12. Rad1 {[%clk 0:03:01.7]}
12... a5 {[%clk 0:02:50.7]} 13. a4 {[%clk 0:02:57.8]} 13... Nb4 {[%clk
0:02:49.3]} 14. Qb1 {[%clk 0:02:58.4]} 14... h6 {[%clk 0:02:47.1]} 15. Qc1
{[%clk 0:02:20.3]} 15... Qb6 {[%clk 0:02:41.1]} 16. Nb1 {[%clk 0:02:17.7]} 16...
Be4 {[%clk 0:02:37.5]} 17. Nc3 {[%clk 0:02:16.9]} 17... Bc2 {[%clk 0:02:38.4]}
18. Nd2 {[%clk 0:02:12.2]} 18... Rad8 {[%clk 0:02:35.2]} 19. Rde1 {[%clk
0:02:11.2]} 19... d5 {[%clk 0:02:35.6]} 20. Nb5 {[%clk 0:02:07.5]} 20... d4
{[%clk 0:02:33.4]} 21. Ba3 {[%clk 0:02:04]} 21... d3 {[%clk 0:02:29.7]} 22. e3
{[%clk 0:01:58.8]} 22... Ng4 {[%clk 0:02:20.4]} 23. Bb2 {[%clk 0:01:45.2]} 23...
Bf6 {[%clk 0:02:15.1]} 24. Bxf6 {[%clk 0:01:44.9]} 24... Nxf6 {[%clk 0:02:16.9]}
25. Qb2 {[%clk 0:01:46.4]} 25... Rfe8 {[%clk 0:02:15.2]} 26. Rc1 {[%clk
0:01:47]} 26... e5 {[%clk 0:02:14.5]} 27. e4 {[%clk 0:01:41.4]} 27... Nc6 {[%clk
0:02:08.2]} 28. Rxc2 {[%clk 0:01:34.8]} 28... dxc2 {[%clk 0:02:08.2]} 29. Qxc2
{[%clk 0:01:36.1]} 29... Nb4 {[%clk 0:02:07.4]} 30. Qb2 {[%clk 0:01:28.7]} 30...
Rd3 {[%clk 0:02:03.5]} 31. Nb1 {[%clk 0:01:29.7]} 31... Nc6 {[%clk 0:02:02.2]}
32. N1c3 {[%clk 0:01:30.3]} 32... Nd4 {[%clk 0:02:02.7]} 33. Qb1 {[%clk
0:01:27]} 33... Rd2 {[%clk 0:02:00.4]} 34. Rd1 {[%clk 0:01:15.4]} 34... Rxd1+
{[%clk 0:01:58.4]} 35. Qxd1 {[%clk 0:01:16.6]} 35... Rd8 {[%clk 0:01:55.4]} 36.
Nd5 {[%clk 0:01:17.3]} 36... Nxd5 {[%clk 0:01:54.8]} 37. exd5 {[%clk 0:01:18.6]}
37... g6 {[%clk 0:01:51.6]} 38. h4 {[%clk 0:01:16.8]} 38... h5 {[%clk
0:01:50.1]} 39. Qd3 {[%clk 0:01:11.5]} 39... Kg7 {[%clk 0:01:48]} 40. Kh2 {[%clk
0:01:12.7]} 40... Qf6 {[%clk 0:01:44.4]} 41. Qe3 {[%clk 0:01:09.9]} 41... Re8
{[%clk 0:01:41.2]} 42. Be4 {[%clk 0:01:09.7]} 42... Rf8 {[%clk 0:01:39.8]} 43.
Kg2 {[%clk 0:01:08.7]} 43... Qd8 {[%clk 0:01:37.8]} 44. Bd3 {[%clk 0:01:03.9]}
44... Re8 {[%clk 0:01:34.8]} 45. Be2 {[%clk 0:01:04.4]} 45... Qf6 {[%clk
0:01:28.4]} 46. Bd1 {[%clk 0:01:05.2]} 46... e4 {[%clk 0:01:27.5]} 47. Nc3
{[%clk 0:01:00.4]} 47... Nf5 {[%clk 0:01:22]} 48. Qc1 {[%clk 0:00:54.7]} 48...
e3 {[%clk 0:01:23.1]} 49. f3 {[%clk 0:00:56]} 49... Qe5 {[%clk 0:01:20.3]} 50.
Ne4 {[%clk 0:00:57.2]} 50... Nd4 {[%clk 0:01:12.9]} 51. Qxe3 {[%clk 0:00:37.2]}
51... f5 {[%clk 0:01:08.8]} 0-1